Cogmind - Beta 15 @@@ ROGUE MODE // 2025.08.23 @ 23:12:51 Player: Aleph Result: Destroyed by exploding Fusion Modulator Performance ------------- Evolutions (0) 0 Regions Visited (1) 200 Robots Destroyed (12) 60 Value Destroyed (269) 269 Prototype IDs (0) 0 Alien Tech Used (0) 0 Bonus (0) 0 TOTAL SCORE: 529 Bonus ------- None Cogmind --------- Core Integrity 0/250 Matter 242/300 Energy 239/250 System Corruption 0% Temperature Cool (24) Movement Core (150) Ox2 Location -10/Materials Parts ------- > --- POWER (1) -------- Ion Engine > --- PROPULSION (2) --- Flight Unit > --- UTILITY (2) ------ Terrain Scanner > --- WEAPON (2) ------- Small Laser > --- INVENTORY (5) ---- Aluminum Leg Aluminum Leg Light Armor Plating Small Laser Peak State ------------ > --- POWER ------------ Light Ion Engine > --- PROPULSION ------- Wheel Wheel > --- UTILITY ---------- Light Armor Plating Light Armor Plating > --- WEAPON ----------- EM Pulse Gun Assault Rifle > --- INVENTORY -------- Aluminum Leg Aluminum Leg Small Laser Small Laser [Rating: 7] Favorites ----------- Power Light Ion Engine Engine Light Ion Engine Propulsion Wheel Wheel Wheel Flight Unit Flight Unit Utility Terrain Scanner Device Terrain Scanner Protection Light Armor Plating Weapon Assault Rifle Energy Gun Small Laser Ballistic Gun Assault Rifle Launcher Grenade Launcher Build | -11 -10 ------- Run | Yrd Mat Slots Evolved . | . . Power . | . . Propulsion . | . . Utility . | . . Weapon . | . . Parts Attached 14 | 5 9 Power 2 | 1 1 Engine 2 | 1 1 Core . | . . Reactor . | . . Propulsion 4 | 2 2 Treads . | . . Leg . | . . Wheel 2 | 2 . Hover . | . . Flight 2 | . 2 Utility 3 | . 3 Device 1 | . 1 Storage . | . . Processor . | . . Hackware . | . . Protection 2 | . 2 Artifact . | . . Weapon 5 | 2 3 Energy Gun 3 | 1 2 Energy Cannon . | . . Ballistic Gun 1 | 1 . Ballistic Cannon . | . . Launcher 1 | . 1 Special Weapon . | . . Impact Weapon . | . . Slashing Weapon . | . . Piercing Weapon . | . . Special Melee Weapon . | . . Unidentified Prototypes . | . . Parts Lost 7 | . 7 Power . | . . Propulsion 2 | . 2 Utility 1 | . 1 Weapon 4 | . 4 Highest Loss Streak 3 | . 3 To Critical Strikes . | . . Average Backups 4 | 3 4 Power . | . . Propulsion 1 | 1 2 Utility . | . . Weapon 1 | 1 2 Tool/Special . | . . Unused Backups 3 | . 3 Power . | . . Propulsion 2 | . 2 Utility . | . . Weapon 1 | . 1 Tool/Special . | . . Average Slot Usage (%) 84 | . 84 Engine 14 | . 14 Wheel 23 | . 23 Flight 2 | . 2 Device 8 | . 8 Protection 7 | . 7 Energy Gun 10 | . 10 Ballistic Gun 13 | . 13 Launcher 3 | . 3 Peak Build Rating 7 | 5 7 Average Rating 5 | 4 5 On Entrance 2 | . 5 Naked Turns . | . . Heaviest Build 13 | 6 13 Greatest Support 20 | 20 20 Greatest Overweight (x) 1 | . 1 Average Overweight (x) . | . . Largest Inventory Capacity 5 | 5 5 Average Capacity 5 | 5 5 Most Carried 5 | 4 5 Average Carried 4 | 3 4 Final Capacity 5 | 5 5 Final Carried 4 | 4 4 Class Distribution -------------------- 100% | Mutant Dominant Class ---------------- Mutant | -10/Materials Resources | -11 -10 ----------- Run | Yrd Mat Matter Collected 443 | 271 172 Remotely . | . . Salvage Created 345 | 35 310 Parts 24 | 1 23 Haulers Intercepted . | . . Recyclers Shooed . | . . Parts Field Recycled . | . . Retrieved Matter . | . . Parts Self-Destructed . | . . Prevented . | . . Kills | -11 -10 ------- Run | Yrd Mat Combat Hostiles Destroyed 11 | 1 10 Guns 11 | 1 10 Classes Destroyed 3 | 1 2 Watcher 1 | . 1 Swarmer 6 | . 6 Grunt 5 | 1 4 Best Kill Streak 3 | 1 3 Combat Bots Only 3 | 1 3 Max Kills in Single Turn 2 | 1 2 Gunslinging 1 | . 1 Exploded . | . . Melee . | . . Uniques/NPCs Destroyed . | . . Combat | -11 -10 -------- Run | Yrd Mat Hostile Shots Fired 99 | 11 88 Missed 34 | 4 30 Hits 65 | 7 58 Projectile 65 | 7 58 Damage Taken 828 | 81 747 Core 274 | 35 239 Absorbed by Shields . | . . Core Remaining (%) 86 | 86 . Volleys Fired 52 | 7 45 Largest 2 | 2 2 Hottest 60 | 60 60 Shots Fired 94 | 14 80 Gun 92 | 14 78 Cannon . | . . Launcher 2 | . 2 Special . | . . Kinetic 52 | 7 45 Thermal 25 | 7 18 Explosive 2 | . 2 Electromagnetic 15 | . 15 Robot Hit Streak 6 | 4 6 Robot Miss Streak 5 | 1 5 Penetration Max . | . . Secondary Targets 2 | . 2 Max Gunslinging Chain 1 | . 1 Shots Hit Robots 48 | 10 38 Core Hits 18 | 2 16 Critical Kills . | . . Critical Parts Destroyed . | . . Critical Strikes 1 | . 1 Corrupt 1 | . 1 Melee Attacks . | . . Impact . | . . Slashing . | . . Piercing . | . . Sneak Attacks . | . . Combat Hostiles . | . . Follow-up Attacks . | . . Damage Inflicted 698 | 124 574 Guns 618 | 124 494 Cannons . | . . Explosions 80 | . 80 Melee . | . . Ramming . | . . Kinetic 352 | 71 281 Thermal 154 | 53 101 Explosive 55 | . 55 Electromagnetic 137 | . 137 Impact . | . . Slashing . | . . Piercing . | . . Highest Corruption . | . . Average Corruption . | . . Corruption Purged . | . . Corruption Blocked . | . . Overload Shots . | . . Overflow Damage . | . . Projectiles . | . . Explosions . | . . Melee . | . . Knockbacks . | . . Impact . | . . Kinetic . | . . Secondary . | . . Self-Inflicted Damage 30 | . 30 Shots 1 | . 1 Rammed . | . . Targets Rammed . | . . Kicked . | . . Crushed . | . . Highest Temperature 230 | 18 230 Average Temperature 67 | 12 74 Received Heat Transfer 249 | 42 207 Siege Activations . | . . Martial Activations . | . . Shielding Activations . | . . Robots Disrupted . | . . Combat Hostiles . | . . Robots Corrupted . | . . Combat Hostiles . | . . Parts Fried . | . . Impact Corruptions . | . . Robots Melted . | . . Combat Hostiles . | . . Parts Melted . | . . Heat Transferred 350 | 125 225 Parts Sabotaged . | . . Parts Stolen . | . . Parts Stripped . | . . Power Chain Reactions 1 | . 1 Alert | -11 -10 ------- Run | Yrd Mat Maximum Alert Level . | . . Low Security (%) 100 | 100 100 Level 1 . | . . Level 2 . | . . Level 3 . | . . Level 4 . | . . Level 5 . | . . High Security . | . . Max Security . | . . Peak Influence 118 | 20 118 Initial . | . . Average 6 | . 23 Influence Increases 306 | 20 286 Destroy 0b10 Robot/C 220 | 20 200 Destroy 0b10 Robot/NC 5 | . 5 Destroy Leader 52 | . 52 Disable Machine 15 | . 15 Destroy Structure 14 | . 14 Influence Decreases 216 | 20 196 Time Decay 166 | 20 146 Lost Part 50 | . 50 Squads Dispatched 2 | . 2 Investigation . | . . Extermination . | . . Reinforcement 2 | . 2 Assault . | . . Garrison . | . . Intercept . | . . Searches Triggered . | . . Construction Impeded . | . . Haulers Reinforced . | . . Active Scanning Responses . | . . Cargo Convoy Interrupts . | . . Stealth | -11 -10 --------- Run | Yrd Mat Distress Signals . | . . Communications Jammed . | . . Distress Signals . | . . Times Spotted 15 | 1 14 Peak Tracking Total 4 | 1 4 Tactical Retreats . | . . Traps | -11 -10 ------- Run | Yrd Mat Traps Triggered 1 | . 1 Indirectly . | . . Trap Hack Attempts . | . . Triggered . | . . Disarmed . | . . Reprogrammed . | . . Reused . | . . Traps Extracted . | . . Installed . | . . Triggered . | . . Machines | -11 -10 ---------- Run | Yrd Mat Machines Disabled 1 | . 1 Max in Single Turn 1 | . 1 Machines Repaired . | . . Machines Dismantled . | . . Machines Sabotaged . | . . Overloaded Fab Kills . | . . Hacking | -11 -10 --------- Run | Yrd Mat Machines Accessed 2 | . 2 Terminals 1 | . 1 Fabricators . | . . Repair Stations . | . . Recycling Units 1 | . 1 Scanalyzers . | . . Garrison Access . | . . Total Hacks 4 | . 4 Successful 3 | . 3 Failed 1 | . 1 Catastrophic 1 | . 1 Database Lockouts . | . . Manual 2 | . 2 Terminals 2 | . 2 Fabricators . | . . Repair Stations . | . . Recycling Units 2 | . 2 Scanalyzers . | . . Garrison Access . | . . Terminal Hacks 1 | . 1 Emergency Access Points 1 | . 1 Fabricator Hacks . | . . Repair Station Hacks . | . . Recycling Unit Hacks 2 | . 2 Report Inventory 1 | . 1 Retrieve Components 1 | . 1 Scanalyzer . | . . Garrison Access Hacks . | . . Unauthorized Hacks . | . . Terminals . | . . Fabricators . | . . Repair Stations . | . . Recycling Units . | . . Scanalyzers . | . . Garrison Access . | . . Data Cores Recovered . | . . Used . | . . Hacking Detections 1 | . 1 Full Trace Events 1 | . 1 Feedback Events . | . . Feedback Blocked . | . . Robot Schematics Acquired . | . . Robots Built . | . . Authchips . | . . Time . | . . Total Robot Build Rating . | . . Part Schematics Acquired . | . . Parts Built . | . . Authchips . | . . Time . | . . Total Part Build Rating . | . . Parts Repaired . | . . Time . | . . Parts Recycled . | . . Recycled Matter . | . . Retrieved Matter . | . . Retrieved Components . | . . Parts Scanalyzed . | . . Part Schematics Acquired . | . . Parts Damaged . | . . Bothacking | -11 -10 ------------ Run | Yrd Mat Used RIF Installer . | . . Robots Hacked . | . . Non-combat . | . . Combat . | . . Robot Hacks Applied . | . . Relay Couplers Released . | . . Fabnet Peak Effective % . | . . Robots Rewired . | . . Allies Hacked . | . . Hacks Repelled . | . . Allies | -11 -10 -------- Run | Yrd Mat Total Allies . | . . Largest Group . | . . Highest-Rated Group . | . . Highest-Rated Ally . | . . Total Orders . | . . Ally Attacks . | . . Total Damage . | . . Kills . | . . Allies Corrupted . | . . Allies Melted . | . . Intel | -11 -10 ------- Run | Yrd Mat Active Infowar (turns) 339 | . 339 Terrain 339 | . 339 Robot Analysis Total . | . . Derelict Logs Recovered . | . . Drone Launches . | . . Drone Recoveries . | . . Exploration | -11 -10 ------------- Run | Yrd Mat Turns Passed 2039 | 1493 546 Spaces Moved 1027 | 558 469 Core 24 | 24 . Treads . | . . Legs . | . . Wheels 994 | 534 460 Hover . | . . Flight 9 | . 9 Fastest Speed 37 | 50 37 Average Speed 79 | 78 80 Slowest Speed 95 | 80 95 Overloaded Moves . | . . Propulsion Burnouts . | . . Robots Hopped 1 | . 1 Potential Cave-ins . | . . Cave-ins Triggered . | . . Exploration Rate (%) 44 | 53 35 Regions Visited 1 Branch Regions . Pre-discovered Areas . | . . Known Exits Taken . | . . Unknown Exits Taken 1 | 1 . Scrap Searched . | . . Spaces Dug . | . . Terrain Destroyed 13 | . 13 Melee . | . . Projectile . | . . AOE 13 | . 13 Terrain Rammed . | . . Walls Destroyed . | . . Machines Disabled . | . . Actions | -11 -10 --------- Run | Yrd Mat Total 2149 | 1595 554 Wait 1046 | 1021 25 Move 1024 | 557 467 Hop 1 | . 1 Pick Up 8 | 5 3 Fast Attach 8 | 4 4 Attach 3 | 1 2 Detach . | . . Swap 5 | . 5 Drop 2 | . 2 Fire 52 | 7 45 Melee . | . . Ram . | . . Kick . | . . Crush . | . . Escape Stasis . | . . Rewire . | . . Trap . | . . Miscellaneous . | . . Route ------- -11/Scrapyard -10/Materials (discovered 1 exit: [*Mat]) History --------- Turn | Location | Event 2 | -11/Scrapyard | Met Revision 17 72 | -11/Scrapyard | Discovered new exit (range 8) 1494 | -11/Scrapyard | Entered Materials 1495 | -10/Materials | Build established: Mutant 1704 | -10/Materials | Discovered new exit (range 16) 2005 | -10/Materials | Core integrity fell below 50% 2040 | -10/Materials | Destroyed by exploding Fusion Modulator Last Messages --------------- R-06 Scavenger collects Flight Unit. S-10 Pest destroyed. R-06 Scavenger collects Flight Unit. Acquired 10 matter. R-06 Scavenger collects Flight Unit. Dropped Flight Unit. K-01 Serf cleans the Fusion Modulator. R-06 Scavenger collects Flight Unit. Triggered Explosive Trap. An explosion rips through the floor. Assault Rifle destroyed. K-01 Serf cleans the Fusion Modulator. Acquired Sml. Laser. Fusion Modulator explodes. T-07 Excavator destroyed. Terminal disabled. Fusion Modulator explodes. K-01 Serf destroyed. Fusion Modulator explodes. Wheel destroyed. Map ----- +----------------------------------------------------+ | ?????????????????????????????????????????????????? | | ?????????????????????????????????????????????????? | | ?????????????????????????????????????????????????? | | ??????????? ?????????????????????????????????????? | | ?????????????????????????????????????????????????? | | ?????????????????????????????????????????????????? | | ?????????????????????????????????????????????????? | | ???????????"?????????????????????????????????????? | | ????????? ????????????????? ???????????????????? | | ?????#????????????????? ??? #??????????????????? | | ?????????????#????????????? #??????????????????? | | ?????????????#????????????? #??????????????????? | | ??????????????????????????? #??????????????????? | | ########?#????????????????# #??????????????????? | | #??????????????????# #??????????????????? | | < ###############????# #######????????????? | | ^ ###### ???????????? | | ### ^ [ # ; ??????????? | | ??# """"" [^! # " ;%| ??????????? | | ?## """"" [[! # ; a ??????????? | | ??# """"" [! # ; ??????????? | | ### """"" # ?????????? | | #"" """"" # ! "????????? | | #"T """" !! # * ??????? | | #"" %%""" % # = ??????? | | ### % ! # @ ""????????? | | ??# ####;; "?????????? | | ??# = ""????????? | | ??# [% ?????? | | ??# ######### r ?????? | | #?# ## # #########;;;;####"Y"#????????? | | ??# ## + ##???????#####???????????????? | | ??# ## """ # ##?????????#?????????????????? | | ??# ## """ # ##???????????????????????????? | | #?# ## """ # #####################????????? | | ??# ## # # #????????? | | #?# ######+## # "" #????????? | | ??# ##???# ## # """ #????????? | | ?## ##?### #####+########## / #????????? | | ### #### # ## # #????????? | | # """" """ ## # #????????? | | " # """" "Y" ## # #????????? | | ##### ##### # """" ## #######????????? | | # #???###### ## #??????????????? | | + ##### ############### #??????????????? | | # ] #??????????????? | | # T #??????????????? | | #####+## ##+############ #??????????????? | | ## ###### #?????# #??????????????? | | ###### """ #????# #?????#####??????????????? | +----------------------------------------------------+ Best States ------------- Heat Dissipation 25 Energy Generation 10 Energy Capacity 250 Matter Stores 300 Matter Capacity 300 Sight Range 16 Terrain Scan Range 14 Terrain Scan Density 10 Armor Coverage 300 Evasion (%) 62 Item Schematics ----------------- None Robot Schematics ------------------ None Fabricated ------------ Nothing Repaired ---------- Nothing Alien Tech Used ----------------- None Achievements -------------- None Challenges ------------ None Game ------ Seed AuthchipDerelictRecalibrator Manual? 0 Play Time 00:16:02 Cumulative 0.7 hours Start 2025.08.23 @ 22:59:46 End 2025.08.23 @ 23:12:51 Sessions 1 Manual Loads 0 Difficulty Rogue Special Mode None Game No. 2 Rogue 2 Adventurer 0 Explorer 0 Win Type - Total 0 Types 0/0/0/0/0/0/0/0/0/0 Lore% 0 Gallery% 1 Achievement% 1 Wizard Run 0 Options --------- Layout 1 ASCII 0 Keyboard 0 Movement Vi Keybinds 0 Fullscreen 1 Font 32/SmallcapsGlow Map View 50x35 Zoom Use 0% Tactical HUD 0 Map Filters NONE Filters NONE Steam 1 RUN: cc6238fd-453c-4317-a144-9adfd812d991